bitfinex/quotes_BTCUSD_20241009
["timestamp","ask_amount","ask_price","bid_price","bid_amount"]
[1728480327038,0.005,61957.0,61956.0,0.256044]
[1728480327463,0.161392,61961.0,61957.0,0.184401]
[1728480327655,0.161394,61960.0,61957.0,0.184401]
[1728480327943,0.161392,61961.0,61958.0,0.161398]
[1728480328159,0.161394,61961.0,61957.0,0.184401]
[1728480328384,0.161389,61962.0,61957.0,0.023]
[1728480328614,0.56458792,61968.0,61960.0,0.023]
[1728480328847,0.24183992,61968.0,61960.0,0.18383764]
[1728480329117,0.24183992,61968.0,61965.0,0.161381]
[1728480329515,0.40321392,61968.0,61965.0,0.161381]
[1728480329977,0.24183992,61968.0,61965.0,0.161381]
[1728480330208,0.00664,61966.0,61965.0,0.161381]
[1728480330418,0.00164,61966.0,61964.0,0.184383]
[1728480330846,0.00464,61966.0,61964.0,0.184383]
[1728480331058,0.00464,61966.0,61964.0,0.214383]
[1728480332162,0.00164,61966.0,61964.0,0.214383]
[1728480332603,0.00364,61966.0,61964.0,0.215383]
[1728480332826,0.00364,61966.0,61965.0,0.161381]
[1728480333518,0.00364,61966.0,61964.0,0.054]
[1728480333735,0.00164,61966.0,61964.0,0.054]
[1728480333960,0.22760092,61970.0,61964.0,0.214383]
[1728480334211,0.003,61966.0,61964.0,0.214383]
[1728480334690,0.003,61966.0,61964.0,0.053]
[1728480334924,0.003,61966.0,61965.0,0.161381]
[1728480335394,0.38897092,61970.0,61965.0,0.161381]
[1728480335640,0.002,61966.0,61965.0,0.161381]
[1728480336297,0.005,61966.0,61964.0,0.053]
[1728480336539,0.00664,61966.0,61964.0,0.214382]
[1728480337238,0.00664,61966.0,61965.0,0.161381]
[1728480337748,0.00664,61966.0,61965.0,0.184381]
[1728480338539,0.00164,61966.0,61965.0,0.023]
[1728480338749,0.00364,61966.0,61964.0,0.03]
[1728480338992,0.00364,61966.0,61964.0,0.031]
[1728480338993,0.163019,61966.0,61964.0,0.031]
[1728480339235,0.161381,61965.0,61964.0,0.031]
[1728480339502,0.27144,61966.0,61964.0,0.03]
[1728480339721,0.161381,61965.0,61964.0,0.03]
[1728480341788,0.27044,61966.0,61964.0,0.03]
[1728480341993,0.431819,61966.0,61964.0,0.03]
[1728480342223,0.002,61965.0,61964.0,0.03]
[1728480342441,0.002,61965.0,61964.0,0.031]
[1728480342888,0.002,61965.0,61964.0,0.03]
[1728480343137,0.429819,61966.0,61964.0,0.031]
[1728480343408,0.431819,61966.0,61964.0,0.031]
[1728480343637,0.429819,61966.0,61964.0,0.03]
[1728480344082,0.002,61965.0,61964.0,0.031]
[1728480345297,0.26844,61966.0,61963.0,0.161384]
[1728480345298,0.00164,61966.0,61965.0,0.184381]
[1728480345549,0.00364,61966.0,61965.0,0.184381]
[1728480346497,0.00164,61966.0,61965.0,0.184381]
[1728480346715,0.00464,61966.0,61964.0,0.162382]
[1728480346960,0.00464,61966.0,61964.0,0.161382]
[1728480348376,0.00164,61966.0,61964.0,0.161382]
[1728480348606,0.00364,61966.0,61964.0,0.161382]
[1728480348858,0.00364,61966.0,61964.0,0.162382]
[1728480349345,0.00364,61966.0,61964.0,0.162383]
[1728480349801,0.00364,61966.0,61964.0,0.001]
[1728480350023,0.00364,61966.0,61965.0,0.161381]
[1728480351884,0.00164,61966.0,61965.0,0.161381]
[1728480352378,0.00464,61966.0,61965.0,0.161381]
[1728480353776,0.00464,61966.0,61963.0,0.484155]
[1728480354011,0.00464,61966.0,61961.0,0.00082]
[1728480354240,0.00464,61966.0,61964.0,0.161382]
[1728480354483,0.00464,61966.0,61963.0,0.023]
[1728480354704,0.00464,61966.0,61965.0,0.161381]
[1728480354989,0.16302,61966.0,61963.0,0.023]
[1728480355254,0.16302,61966.0,61961.0,0.00082]
[1728480355255,0.18581635,61964.0,61961.0,0.00082]
[1728480355496,0.078,61963.0,61961.0,0.00182]
[1728480355740,0.078,61963.0,61961.0,0.16221]
[1728480356485,0.078,61963.0,61961.0,0.00082]
[1728480357226,0.078,61963.0,61962.0,0.161389]
[1728480357733,0.078,61963.0,61961.0,0.00082]
[1728480358445,0.083,61963.0,61961.0,0.00082]
[1728480358683,0.08,61963.0,61961.0,0.162211]
[1728480358949,0.086,61963.0,61961.0,0.162211]
[1728480359133,0.08,61963.0,61961.0,0.162211]
[1728480359615,0.085,61963.0,61962.0,0.161389]
[1728480360527,0.085,61963.0,61961.0,0.162211]
[1728480360767,0.085,61963.0,61962.0,0.161389]
[1728480361203,0.083,61963.0,61962.0,0.161389]
[1728480361666,0.086,61963.0,61962.0,0.161389]
[1728480361906,0.081,61963.0,61962.0,0.161389]
[1728480362145,0.087,61963.0,61962.0,0.161389]
[1728480363430,0.009,61963.0,61962.0,0.161389]
[1728480363678,0.009,61963.0,61962.0,0.184389]
[1728480364961,0.009,61963.0,61962.0,0.34845424]
[1728480365193,0.009,61963.0,61962.0,0.34522664]
[1728480365901,0.003,61963.0,61962.0,0.34522664]
[1728480366371,0.00164,61966.0,61965.0,0.161381]
[1728480366602,0.00164,61966.0,61965.0,0.34844591]
[1728480366864,0.00164,61966.0,61965.0,0.34521864]
[1728480368076,0.00364,61966.0,61965.0,0.34521864]
[1728480368786,0.00364,61966.0,61965.0,0.34621864]
[1728480369508,0.00364,61966.0,61965.0,0.44521864]
[1728480370676,0.00164,61966.0,61965.0,0.44521864]
[1728480370924,0.00164,61966.0,61965.0,0.62681864]
[1728480371176,0.00164,61966.0,61965.0,0.62781864]
[1728480371671,0.00164,61966.0,61965.0,0.75055091]
[1728480371672,0.00264,61966.0,61965.0,0.75055091]
[1728480371897,0.00164,61966.0,61965.0,0.62781864]
[1728480372137,0.00264,61966.0,61965.0,0.63081864]
[1728480372378,0.00364,61966.0,61965.0,0.63181864]
[1728480372856,0.00264,61966.0,61965.0,0.63081864]
[1728480373095,0.00264,61966.0,61965.0,0.63381864]
[1728480373331,0.00164,61970.0,61969.0,0.289371]
[1728480373572,0.00164,61970.0,61969.0,0.45020864]
[1728480374263,0.00164,61970.0,61969.0,0.54677955]
[1728480374498,0.00164,61970.0,61969.0,0.5176451]
[1728480374731,0.00264,61970.0,61969.0,0.47950453]
[1728480375191,0.00364,61970.0,61969.0,0.48050453]
[1728480375452,0.00264,61970.0,61969.0,0.42727634]
[1728480375673,0.00164,61970.0,61969.0,0.61287634]
[1728480375921,0.00364,61970.0,61969.0,0.64487634]
[1728480377084,0.00164,61970.0,61969.0,0.63587634]
[1728480377330,0.00264,61970.0,61969.0,0.64487634]
[1728480377558,0.00364,61970.0,61969.0,0.7182483]
[1728480378601,0.00364,61970.0,61969.0,0.64587634]
[1728480378769,0.00364,61970.0,61969.0,0.76660649]
[1728480379121,0.00364,61970.0,61969.0,0.76637709]
[1728480379834,0.00364,61970.0,61969.0,0.76637364]
[1728480380299,0.00364,61970.0,61969.0,0.64587634]
[1728480380752,0.00364,61970.0,61969.0,1.14131366]
[1728480381202,0.00364,61970.0,61969.0,1.02008634]
[1728480381434,0.00264,61970.0,61969.0,1.01908634]
[1728480381674,0.00264,61970.0,61969.0,1.02008634]
[1728480381675,0.00364,61970.0,61969.0,1.02008634]
[1728480381901,0.00364,61970.0,61969.0,0.87694634]
[1728480382136,0.00264,61970.0,61969.0,0.86794634]
[1728480382364,0.00264,61970.0,61969.0,0.964237]
[1728480383263,0.00164,61970.0,61969.0,0.96315853]
[1728480383482,0.00164,61970.0,61969.0,0.74608853]
[1728480383696,0.00264,61970.0,61969.0,0.75708853]
[1728480384159,0.00264,61970.0,61969.0,0.66287634]
[1728480384388,0.00264,61970.0,61969.0,0.73501382]
[1728480385294,0.00264,61970.0,61969.0,0.66287634]
[1728480386044,0.00264,61970.0,61969.0,0.66087634]
[1728480387196,0.00264,61970.0,61969.0,0.7109545]
[1728480387430,0.00264,61970.0,61969.0,0.66287634]
[1728480387894,0.00264,61970.0,61969.0,0.73500317]
[1728480388135,0.00264,61970.0,61969.0,0.66287634]
[1728480388592,0.00264,61970.0,61969.0,0.71097342]
[1728480390722,0.00264,61970.0,61969.0,0.71096151]
[1728480391229,0.00264,61970.0,61969.0,0.77352051]
[1728480391446,0.00264,61970.0,61969.0,0.66192051]
[1728480391926,0.00264,61970.0,61969.0,0.59192051]
[1728480392865,0.00264,61970.0,61969.0,0.54383534]
[1728480394771,0.00264,61970.0,61969.0,0.53883534]
[1728480395215,0.00264,61970.0,61969.0,0.45127634]
[1728480395454,0.38505635,61970.0,61969.0,0.34720864]
[1728480395687,0.46145635,61970.0,61969.0,0.025]
[1728480395908,0.27564,61970.0,61969.0,0.186371]
[1728480396131,0.437008,61970.0,61969.0,0.025]
[1728480396360,0.34882435,61970.0,61967.0,0.161375]
[1728480396586,0.18845635,61970.0,61969.0,0.171371]
[1728480396830,0.34982435,61970.0,61969.0,0.018]
[1728480397056,0.46045635,61970.0,61969.0,0.169371]
[1728480397324,0.46045635,61970.0,61969.0,0.171371]
[1728480397325,0.46145635,61970.0,61969.0,0.171371]
[1728480398014,0.46045635,61970.0,61969.0,0.194371]
[1728480398245,0.46045635,61970.0,61969.0,0.198371]
[1728480398935,0.62182435,61970.0,61969.0,0.014]
[1728480400343,0.74871569,61970.0,61969.0,0.014]
[1728480400841,0.62182435,61970.0,61969.0,0.014]
[1728480401118,0.161376,61967.0,61966.0,0.00082]
[1728480401311,0.430776,61967.0,61966.0,0.00082]
[1728480403351,0.436776,61967.0,61966.0,0.00182]
[1728480403561,0.441776,61967.0,61966.0,0.00282]
[1728480407880,0.2804,61967.0,61966.0,0.187198]
[1728480408111,0.2804,61967.0,61966.0,0.34803564]
[1728480409290,0.2694,61967.0,61966.0,0.34603564]
[1728480409516,0.2694,61967.0,61966.0,0.34903564]
[1728480409759,0.2694,61967.0,61966.0,0.35003564]
[1728480409988,0.2694,61967.0,61966.0,0.34603564]
[1728480410223,0.2694,61967.0,61966.0,0.34703564]
[1728480410458,0.2694,61967.0,61966.0,0.35003564]
[1728480410699,0.27104,61967.0,61966.0,0.35003564]
[1728480417289,0.27104,61967.0,61966.0,0.189198]
[1728480417518,0.27104,61967.0,61966.0,0.00482]
[1728480417519,0.61823235,61967.0,61966.0,0.00482]
[1728480418209,0.61823235,61967.0,61966.0,0.00382]
[1728480418676,0.61823235,61967.0,61966.0,0.02682]
[1728480419190,0.61823235,61967.0,61966.0,0.00082]
[1728480419419,0.62023235,61967.0,61966.0,0.00082]
[1728480419950,0.61823235,61967.0,61966.0,0.00082]
[1728480420178,0.62323235,61967.0,61966.0,0.00082]
[1728480420415,0.62723235,61967.0,61966.0,0.00082]
[1728480421857,0.46585635,61967.0,61966.0,0.00082]
[1728480422086,0.28004,61967.0,61966.0,0.185198]
[1728480422581,0.28004,61967.0,61966.0,0.2002683]
[1728480422868,0.27504,61967.0,61966.0,0.2002683]
[1728480423111,0.27104,61967.0,61966.0,0.2002683]
[1728480423339,0.27504,61967.0,61966.0,0.2002683]
[1728480423802,0.27404,61967.0,61966.0,0.2002683]
[1728480424040,0.27104,61967.0,61966.0,0.187198]
[1728480424273,0.27104,61967.0,61966.0,0.20226809]
[1728480425459,0.27104,61967.0,61966.0,0.20026809]
[1728480425935,0.27104,61967.0,61966.0,0.187198]
[1728480426174,0.27104,61967.0,61966.0,0.20226907]
[1728480427919,0.27104,61967.0,61966.0,0.187198]
[1728480428836,0.27104,61967.0,61966.0,0.34803564]
[1728480432182,0.27104,61967.0,61966.0,0.187198]
[1728480438520,0.27104,61967.0,61966.0,0.34803564]
[1728480438746,0.00164,61967.0,61966.0,0.44803564]
[1728480439407,0.00164,61967.0,61966.0,0.46311508]
[1728480441150,0.00164,61967.0,61966.0,0.51128627]
[1728480445348,0.00164,61967.0,61966.0,0.49620683]
[1728480445784,0.00164,61967.0,61966.0,0.33536919]
[1728480446518,0.00164,61967.0,61966.0,0.287198]
[1728480446753,0.26684,61967.0,61966.0,0.02582]
[1728480446990,0.428216,61967.0,61966.0,0.00282]
[1728480447660,0.428216,61967.0,61966.0,0.00082]
[1728480448118,0.428216,61967.0,61966.0,0.00282]
[1728480448354,0.433216,61967.0,61966.0,0.00382]
[1728480448616,0.433216,61967.0,61966.0,0.00182]
[1728480448847,0.443216,61967.0,61966.0,0.00282]
[1728480452023,0.28184,61967.0,61966.0,0.02582]
[1728480452464,0.28184,61967.0,61966.0,0.187198]
[1728480454484,0.27184,61967.0,61966.0,0.186198]
[1728480454699,0.26684,61967.0,61966.0,0.185198]
[1728480454950,0.26784,61967.0,61966.0,0.185198]
[1728480455589,0.27084,61967.0,61966.0,0.185198]
[1728480458090,0.27084,61967.0,61966.0,0.00082]
[1728480458294,0.27084,61967.0,61966.0,0.185198]
[1728480459142,0.432216,61967.0,61966.0,0.00082]
[1728480459385,0.52645613,61967.0,61966.0,0.00082]
[1728480459937,0.432216,61967.0,61966.0,0.00082]
[1728480460552,0.59305364,61967.0,61966.0,0.00082]
[1728480460752,0.59805364,61967.0,61966.0,0.00082]
[1728480461231,0.59705364,61967.0,61966.0,0.00082]
[1728480461419,0.59405364,61967.0,61966.0,0.00082]
[1728480461651,0.60005364,61967.0,61966.0,0.00082]
[1728480461853,0.75504921,61967.0,61966.0,0.00082]
[1728480462498,0.75004921,61967.0,61966.0,0.00082]
[1728480462884,0.75504921,61967.0,61966.0,0.00182]
[1728480463105,0.99888913,61967.0,61966.0,0.00182]
[1728480463327,0.005,61959.0,61956.0,0.00164]
[1728480463554,0.322847,61949.0,61945.0,0.1446163]
[1728480463771,0.62514435,61947.0,61945.0,0.1446163]
[1728480464829,0.46371635,61947.0,61945.0,0.1446163]
[1728480465046,0.2829,61947.0,61946.0,0.20963129]
[1728480465259,0.2919,61947.0,61946.0,0.21063129]
[1728480465466,0.2869,61947.0,61946.0,0.04920129]
[1728480465883,0.2969,61947.0,61946.0,0.05020129]
[1728480466082,0.2969,61947.0,61946.0,0.23463129]
[1728480466323,0.2969,61947.0,61946.0,0.07320129]
[1728480467062,0.2779,61947.0,61946.0,0.07120129]
[1728480467274,0.2799,61947.0,61946.0,0.07120129]
[1728480467528,0.2829,61947.0,61946.0,0.07120129]
[1728480468331,0.2829,61947.0,61946.0,0.23263129]
[1728480468560,0.005,61947.0,61946.0,0.23263129]
[1728480470155,0.24183992,61952.0,61951.0,0.184417]
[1728480470372,0.24183992,61952.0,61951.0,0.023]
[1728480470596,0.0815,61956.0,61954.0,0.023]
[1728480471041,0.242906,61956.0,61953.0,0.023]
[1728480471259,0.161409,61955.0,61950.0,0.023]
[1728480471482,0.161409,61955.0,61952.0,0.161415]
[1728480471687,0.161409,61955.0,61952.0,0.023]
[1728480471913,0.40431,61956.0,61952.0,0.023]
[1728480472144,0.40431,61956.0,61951.0,0.023]
[1728480472145,0.161413,61953.0,61951.0,0.023]
[1728480472375,0.40431,61956.0,61951.0,0.023]
[1728480472376,0.0815,61956.0,61951.0,0.023]
[1728480472610,0.242905,61956.0,61953.0,0.161412]
[1728480472809,0.242905,61956.0,61954.0,0.023]
[1728480473243,0.0835,61956.0,61954.0,0.023]
[1728480473461,0.0865,61956.0,61953.0,0.18441]
[1728480473687,0.245907,61956.0,61953.0,0.161411]
[1728480473961,0.0815,61956.0,61955.0,0.161407]
[1728480474181,0.0895,61956.0,61955.0,0.023]
[1728480474396,0.245904,61956.0,61953.0,0.023]
[1728480474612,0.242904,61956.0,61953.0,0.023]
[1728480474832,0.0865,61956.0,61953.0,0.023]
[1728480475044,0.0835,61956.0,61954.0,0.161409]
[1728480475265,0.0835,61956.0,61955.0,0.023]
[1728480475491,0.0895,61956.0,61955.0,0.162407]
[1728480475708,0.0895,61956.0,61955.0,0.185407]
[1728480475709,0.008,61956.0,61955.0,0.185407]
[1728480476563,0.006,61956.0,61955.0,0.185407]
[1728480476791,0.322815,61955.0,61952.0,0.0252881]
[1728480477039,0.161428,61947.0,61946.0,0.04820129]
[1728480477267,0.61144435,61947.0,61946.0,0.04820129]
[1728480477978,0.61144435,61947.0,61946.0,0.04902129]
[1728480478185,0.73715759,61947.0,61946.0,0.04902129]
[1728480478384,0.73715759,61947.0,61946.0,0.05302129]
[1728480478626,0.73715759,61947.0,61946.0,0.04902129]
[1728480480045,0.74515759,61947.0,61946.0,0.05002129]
[1728480480300,0.74510496,61947.0,61946.0,0.05002129]
[1728480480524,0.9169426,61947.0,61946.0,0.05102129]
[1728480480747,0.9219426,61947.0,61946.0,0.05102129]
[1728480480968,0.9239426,61947.0,61946.0,0.05102129]
[1728480481196,0.9239426,61947.0,61939.0,0.09641206]
[1728480481197,0.62646235,61940.0,61939.0,0.09641206]
[1728480481421,0.78729999,61940.0,61939.0,0.33825198]
[1728480481676,0.78229999,61940.0,61939.0,0.09641206]
[1728480482111,0.78729999,61940.0,61939.0,0.09641206]
[1728480483010,0.62146235,61940.0,61939.0,0.09641206]
[1728480483237,0.79097288,61940.0,61939.0,0.09641206]
[1728480483467,0.64446235,61940.0,61939.0,0.11941206]
[1728480483717,0.2742,61940.0,61939.0,0.11941206]
[1728480484182,0.2942,61940.0,61939.0,0.11941206]
[1728480484418,0.444646,61940.0,61939.0,0.11941206]
[1728480484852,0.451646,61940.0,61939.0,0.11941206]
[1728480485278,0.73904807,61940.0,61939.0,0.11941206]
[1728480485515,0.73904807,61940.0,61939.0,0.09641206]
[1728480486143,0.73204807,61940.0,61939.0,0.09641206]
[1728480486369,0.444646,61940.0,61939.0,0.09641206]
[1728480486635,0.445646,61940.0,61939.0,0.09641206]
[1728480486848,0.457646,61940.0,61939.0,0.09641206]
[1728480487306,0.447646,61940.0,61939.0,0.09641206]
[1728480487519,0.453646,61940.0,61939.0,0.09641206]
[1728480487753,0.441646,61940.0,61939.0,0.09641206]
[1728480487973,0.443646,61940.0,61939.0,0.09641206]
[1728480489293,0.60345513,61940.0,61939.0,0.09641206]
[1728480489518,0.61045513,61940.0,61939.0,0.09641206]
[1728480489948,0.61045513,61940.0,61939.0,0.09723206]
[1728480490182,0.59545513,61940.0,61939.0,0.09723206]
[1728480490402,0.60545513,61940.0,61939.0,0.09723206]
[1728480490626,0.61745513,61940.0,61939.0,0.09723206]
[1728480490847,0.457646,61940.0,61939.0,0.09723206]
[1728480492416,0.457646,61940.0,61939.0,0.00082]
[1728480493747,0.457646,61940.0,61939.0,0.02382]
[1728480494452,0.457646,61940.0,61939.0,0.00082]
[1728480494665,0.61845261,61940.0,61939.0,0.00082]
[1728480504974,0.77929025,61940.0,61939.0,0.00082]
[1728480505874,0.78429025,61940.0,61939.0,0.00082]
[1728480506329,0.77429025,61940.0,61939.0,0.00082]
[1728480506556,0.76229025,61940.0,61939.0,0.00082]
[1728480506790,0.437646,61940.0,61939.0,0.00082]
[1728480507942,0.437646,61940.0,61939.0,0.00082]
[1728480515552,0.437646,61940.0,61938.0,0.00164]
[1728480515553,0.16283764,61940.0,61938.0,0.00164]
[1728480515809,0.16647,61931.0,61930.0,0.001642]
[1728480516047,0.64067037,61931.0,61930.0,0.001642]
[1728480517062,0.47483273,61931.0,61930.0,0.001642]
[1728480517552,0.42557,61931.0,61930.0,0.001642]
[1728480517784,0.42457,61931.0,61930.0,0.001642]
[1728480518025,0.74621425,61931.0,61930.0,0.001642]
[1728480519277,0.74721425,61931.0,61930.0,0.001642]
[1728480519525,0.74621425,61931.0,61930.0,0.001642]
[1728480519777,0.74921425,61931.0,61930.0,0.001642]
[1728480520026,0.74721425,61931.0,61930.0,0.001642]
[1728480520252,0.74621425,61931.0,61930.0,0.001642]
[1728480520507,0.74721425,61931.0,61930.0,0.001642]
[1728480525664,0.58637661,61931.0,61930.0,0.001642]
[1728480529037,0.16247,61931.0,61930.0,0.001642]
[1728480530257,0.16147,61931.0,61930.0,0.001642]
[1728480530497,0.17147,61931.0,61930.0,0.001642]
[1728480531227,0.17947,61931.0,61930.0,0.001642]
[1728480537108,0.018,61931.0,61930.0,0.186114]
[1728480537787,0.01,61931.0,61930.0,0.186114]
[1728480538406,0.24183992,61937.0,61931.0,0.023]
[1728480538634,0.24183992,61937.0,61935.0,0.161459]
[1728480538877,0.24183992,61937.0,61936.0,0.161456]
[1728480539082,0.24183992,61937.0,61934.0,0.184461]
[1728480539328,0.001642,61938.0,61934.0,0.023]
[1728480539558,0.163095,61938.0,61934.0,0.184461]
[1728480539795,0.163095,61938.0,61935.0,0.161458]
[1728480540016,0.003,61937.0,61934.0,0.023]
[1728480540245,0.003,61937.0,61935.0,0.161459]
[1728480540452,0.003,61937.0,61934.0,0.18446]
[1728480540685,0.003,61937.0,61936.0,0.161456]
[1728480541168,0.003,61937.0,61936.0,0.44852259]
[1728480541409,0.004,61937.0,61936.0,0.52029364]
[1728480542085,0.001,61937.0,61936.0,0.52029364]
[1728480542599,0.001,61937.0,61936.0,0.51929364]
[1728480542854,0.001642,61938.0,61936.0,0.51929364]
[1728480542855,0.001642,61938.0,61937.0,0.284454]
[1728480545004,0.001642,61938.0,61937.0,0.023]
[1728480546130,0.001642,61938.0,61936.0,0.161456]
[1728480546373,0.002642,61938.0,61936.0,0.161456]
[1728480546596,0.002642,61938.0,61936.0,0.162456]
[1728480547318,0.002642,61938.0,61936.0,0.161456]
[1728480547550,0.161454,61937.0,61936.0,0.001]
[1728480547791,0.002642,61938.0,61936.0,0.001]
[1728480548029,0.1108,61937.0,61936.0,0.001]
[1728480548989,0.001642,61938.0,61937.0,0.184454]
[1728480549221,0.001642,61938.0,61937.0,0.51852031]
[1728480549459,0.001642,61938.0,61937.0,0.51529164]
[1728480549896,0.001642,61938.0,61937.0,0.52029164]
[1728480550590,0.002642,61938.0,61937.0,0.52629164]
[1728480551093,0.001642,61938.0,61937.0,0.52029164]
[1728480551780,0.002642,61938.0,61937.0,0.52445711]
[1728480552008,0.002642,61938.0,61937.0,0.52645711]
[1728480552242,0.001642,61938.0,61937.0,0.52645711]
[1728480552476,0.001642,61938.0,61937.0,0.60005811]
[1728480552477,0.002642,61938.0,61937.0,0.60005811]
[1728480552712,0.002642,61938.0,61937.0,0.59905811]
[1728480553162,0.002642,61938.0,61937.0,0.59805811]
[1728480553406,0.002642,61938.0,61937.0,0.58905811]
[1728480553407,0.001642,61938.0,61937.0,0.58905811]
[1728480553669,0.002642,61938.0,61937.0,0.60105811]
[1728480554792,0.003642,61938.0,61937.0,0.61005811]
[1728480556886,0.003642,61938.0,61937.0,0.60805811]
[1728480557106,0.003642,61938.0,61937.0,0.61005811]
[1728480559240,0.001642,61944.0,61943.0,0.361438]
[1728480559454,0.001642,61944.0,61943.0,0.70809199]
[1728480559684,0.001642,61944.0,61943.0,1.47196699]
[1728480559883,0.001642,61944.0,61943.0,1.50444899]
[1728480560102,0.001642,61944.0,61943.0,0.95709199]
[1728480561534,0.001642,61944.0,61943.0,0.97109199]
[1728480562257,0.001642,61944.0,61943.0,0.98509199]
[1728480563713,0.001642,61944.0,61943.0,0.98308299]
[1728480564647,0.001642,61944.0,61943.0,0.98508299]
[1728480565653,0.001642,61944.0,61943.0,0.98308299]
[1728480566127,0.001642,61944.0,61943.0,0.98508299]
[1728480570693,0.24183992,61952.0,61951.0,0.007]
[1728480570921,0.00164,61953.0,61952.0,0.291415]
[1728480571147,0.00164,61953.0,61952.0,1.31713333]
[1728480571371,0.00164,61953.0,61952.0,1.05322364]
[1728480571601,0.00164,61953.0,61952.0,0.45025264]
[1728480572572,0.00164,61953.0,61952.0,0.64400264]
[1728480572772,0.00164,61953.0,61952.0,0.66500264]
[1728480573666,0.00164,61956.0,61955.0,0.47722335]
[1728480573890,0.00164,61956.0,61955.0,0.63806099]
[1728480574403,0.20712686,61958.0,61957.0,0.266402]
[1728480574640,0.20712686,61958.0,61957.0,0.45023964]
[1728480574863,0.0493428,61965.0,61964.0,0.261384]
[1728480575092,0.0493428,61965.0,61964.0,0.63103799]
[1728480575306,0.1919,61969.0,61965.0,0.123]
[1728480575515,0.1919,61969.0,61966.0,0.44521564]
[1728480575955,0.00164,61967.0,61966.0,0.44521564]
[1728480577722,0.00164,61967.0,61966.0,0.44921564]
[1728480577934,0.00164,61967.0,61966.0,0.45221564]
[1728480578169,0.00164,61967.0,61966.0,0.45721564]
[1728480578384,0.00164,61967.0,61966.0,0.45921564]
[1728480578827,0.00164,61967.0,61966.0,0.45721564]
[1728480579038,0.00164,61967.0,61966.0,0.45521564]
[1728480579493,0.00164,61967.0,61966.0,0.46421564]
[1728480579946,0.00164,61967.0,61966.0,0.46621564]
[1728480580407,0.00164,61967.0,61966.0,0.46121564]
[1728480580628,0.00164,61967.0,61966.0,0.46021564]
[1728480580850,0.00164,61967.0,61966.0,0.47421564]
[1728480581075,0.00164,61967.0,61966.0,0.46421564]
[1728480581303,0.00164,61967.0,61966.0,0.47821564]
[1728480582370,0.00164,61967.0,61966.0,0.48246215]
[1728480583267,0.11284,61967.0,61966.0,0.48246215]
[1728480583491,0.18874,61967.0,61966.0,0.45446215]
[1728480585084,0.18874,61967.0,61966.0,0.47746215]
[1728480590853,0.11284,61967.0,61966.0,0.48246215]
[1728480591090,0.00164,61967.0,61966.0,0.48246215]
[1728480592260,0.00164,61967.0,61966.0,0.48446215]
[1728480592474,0.00164,61967.0,61966.0,0.48246215]
[1728480592972,0.00164,61967.0,61966.0,0.48446215]
[1728480593406,0.00164,61967.0,61966.0,0.48246215]
[1728480596547,0.00164,61967.0,61966.0,0.53051805]
[1728480597964,0.00164,61967.0,61966.0,0.53055201]
[1728480598149,0.00164,61967.0,61966.0,0.54561432]
[1728480598373,0.00164,61967.0,61966.0,0.49752446]
[1728480598827,0.19634,61967.0,61966.0,0.47452446]
[1728480599500,0.19634,61967.0,61966.0,0.522622]
[1728480600239,0.19634,61967.0,61966.0,0.49752446]
[1728480600465,0.19634,61967.0,61966.0,0.49252446]
[1728480601807,0.19634,61967.0,61966.0,0.36952446]
[1728480602009,0.19634,61967.0,61966.0,0.20868682]
[1728480602947,0.19634,61967.0,61966.0,0.29468682]
[1728480603167,0.19634,61967.0,61966.0,0.30444031]
[1728480603656,0.19634,61967.0,61966.0,0.30844031]
[1728480603657,0.1962886,61967.0,61966.0,0.30844031]
[1728480603896,0.1962886,61967.0,61966.0,0.46927795]
[1728480604158,0.1184886,61967.0,61966.0,0.46927795]
[1728480604856,0.1184886,61967.0,61966.0,0.47227795]
[1728480605084,0.1184886,61967.0,61966.0,0.46927795]
[1728480605338,0.1184886,61967.0,61966.0,0.46929201]
[1728480605561,0.1184886,61967.0,61966.0,0.4843705]
[1728480605789,0.1184886,61967.0,61966.0,0.57669114]
[1728480606036,0.08214233,61967.0,61966.0,0.55763653]
[1728480606534,0.08214233,61967.0,61966.0,0.55263653]
[1728480606772,0.08214233,61967.0,61966.0,0.53755804]
[1728480607013,0.08214233,61967.0,61966.0,0.55555804]
[1728480607509,0.08214233,61967.0,61966.0,0.55155804]
[1728480607780,0.08214233,61967.0,61966.0,0.5595647]
[1728480608051,0.08214233,61967.0,61966.0,0.49229867]
[1728480608295,0.08214233,61967.0,61966.0,0.54047475]
[1728480609010,0.08214233,61967.0,61966.0,0.48729867]
[1728480609252,0.16224233,61967.0,61966.0,0.48729867]
[1728480609716,0.16224233,61967.0,61966.0,0.50238007]
[1728480610497,0.16224233,61967.0,61966.0,0.47538007]
[1728480610757,0.16224233,61967.0,61966.0,0.48838007]
[1728480610998,0.16388233,61967.0,61966.0,0.48838007]
[1728480611240,0.16388233,61967.0,61966.0,0.46729457]
[1728480611469,0.16388233,61967.0,61966.0,0.47229445]
[1728480611939,0.16388233,61967.0,61966.0,0.46529445]
[1728480612172,0.16388233,61967.0,61966.0,0.47129445]
[1728480612396,0.16388233,61967.0,61966.0,0.31045681]
[1728480612616,0.16388233,61967.0,61966.0,0.34061654]
[1728480612859,0.16388233,61967.0,61966.0,0.32553773]
[1728480613309,0.16388233,61967.0,61966.0,0.48037537]
[1728480613734,0.16388233,61967.0,61966.0,0.47837537]
[1728480613956,0.08378233,61967.0,61966.0,0.48037537]
[1728480614619,0.08378233,61967.0,61966.0,0.48537537]
[1728480614835,0.08378233,61967.0,61966.0,0.53354991]
[1728480615055,0.08378233,61967.0,61966.0,0.48537383]
[1728480615553,0.08378233,61967.0,61966.0,0.51547262]
[1728480615763,0.08378233,61967.0,61966.0,0.53054873]
[1728480615983,0.08378233,61967.0,61966.0,0.49337265]
[1728480616204,0.08378233,61967.0,61966.0,0.56563868]
[1728480616424,0.08378233,61967.0,61966.0,0.49337265]
[1728480616642,0.08378233,61967.0,61966.0,0.49137265]
[1728480616874,0.08378233,61967.0,61966.0,0.61177346]